[Event "RUS-chT Premier 2019"]
[Site "Sochi"]
[Date "2019.05.03"]
[Round "3.2"]
[White "Usmanov, Vasily"]
[Black "Duzhakov, Ilya"]
[Result "1/2-1/2"]
[ECO "A46"]
[WhiteElo "2437"]
[BlackElo "2388"]
[Annotator "NA"]
[PlyCount "101"]
[EventDate "2019.05.01"]
[EventType "team-tourn"]
[EventCountry "RUS"]
[SourceTitle "playchess.com"]
[Source "ChessBase"]
[SourceQuality "1"]
[TimeControl "40/5400+30:1800+30"]

1. d4 {[%emt 0:00:00]} Nf6 {[%emt 0:00:00]} 2. Nf3 {[%emt 0:00:00]} e6 {[%emt 0:00:03]} 3. g3 {[%emt 0:00:00]} c5 {[%emt 0:07:36]} 4. Bg2 {[%emt 0:00:33]} cxd4 {[%emt 0:00:13]} 5. O-O {[%emt 0:00:10]} d5 {[%emt 0:00:11]} 6. b3 {[%emt 0:00:55]} Be7 {[%emt 0:08:05]} 7. Bb2 {[%emt 0:00:34]} O-O {[%emt 0:01:31]} 8. Nbd2 {[%emt 0:02:57]} Re8 {[%emt 0:02:47]} 9. Ne5 {[%emt 0:12:08]} Nc6 {[%emt 0:11:26]} 10. Nxc6 {[%emt 0:00:10]} bxc6 {[%emt 0:00:02]} 11. Bxd4 {[%emt 0:00:03]} Ba3 {[%emt 0:05:34]} 12. Qb1 {[%emt 0:08:55]} e5 {[%emt 0:04:20]} 13. Bb2 {[%emt 0:00:15]} Qa5 {[%emt 0:07:09]} 14. Bxa3 {[%emt 0:00:27]} Qxa3 {[%emt 0:00:03]} 15. c4 {[%emt 0:00:20]} Bg4 {[%emt 0:03:08]} 16. Re1 {[%emt 0:08:13]} e4 {[%emt 0:03:19]} 17. Qc1 {[%emt 0:06:03]} Qa5 {[%emt 0:04:28]} 18. e3 {[%emt 0:02:39]} Nd7 {[%emt 0:02:02]} 19. h3 {[%emt 0:08:52]} Bh5 {[%emt 0:02:12]} 20. g4 {[%emt 0:02:39]} Bg6 {[%emt 0:00:04]} 21. f4 {[%emt 0:00:13]} exf3 {[%emt 0:09:21]} 22. Nxf3 {[%emt 0:00:10]} Nc5 {[%emt 0:00:43]} 23. Qd2 {[%emt 0:00:17]} Qxd2 {[%emt 0:08:02]} 24. Nxd2 {[%emt 0:00:03]} Nd3 {[%emt 0:01:02]} 25. Rf1 {[%emt 0:00:28]} Rxe3 {[%emt 0:04:29]} 26. cxd5 {[%emt 0:00:18]} cxd5 {[%emt 0:00:03]} 27. Bxd5 {[%emt 0:01:03]} Rae8 {[%emt 0:03:19]} 28. Nc4 {[%emt 0:08:35]} Rxh3 {[%emt 0:04:14]} 29. Kg2 {[%emt 0:00:04]} Rh6 {[%emt 0:00:39]} 30. Kg3 {[%emt 0:00:08]} Rd8 {[%emt 0:02:07]} 31. Ne3 {[%emt 0:02:38]} Re8 {[%emt 0:00:48]} 32. Nc4 {[%emt 0:02:00]} Nb4 {[%emt 0:02:27]} 33. Rfe1 {[%emt 0:06:46]} Rd8 {[%emt 0:01:17]} 34. Rad1 {[%emt 0:00:03]} Bd3 {[%emt 0:02:03]} 35. a3 {[%emt 0:02:06]} Nxd5 {[%emt 0:01:14]} 36. Rxd3 {[%emt 0:00:02]} Rh3+ {[%emt 0:01:16]} 37. Kxh3 {[%emt 0:00:04]} Nf4+ {[%emt 0:00:02]} 38. Kg3 {[%emt 0:00:05]} Nxd3 {[%emt 0:00:05]} 39. Re7 {[%emt 0:00:11]} a6 {[%emt 0:01:28]} 40. Ra7 {[%emt 0:00:00]} g5 {[%emt 0:00:00]} 41. b4 {[%emt 0:07:46]} f5 {[%emt 0:10:11]} 42. gxf5 {[%emt 0:00:34]} Rd4 {[%emt 0:03:20]} 43. Ne3 {[%emt 0:02:09]} h5 {[%emt 0:00:33]} 44. f6 {[%emt 0:03:41]} h4+ {[%emt 0:03:12]} 45. Kh2 {[%emt 0:09:03]} Ne5 {[%emt 0:02:37]} 46. Nf5 {[%emt 0:05:35]} Rd2+ {[%emt 0:01:50]} 47. Kh1 {[%emt 0:04:18]} Nf3 {[%emt 0:04:04]} 48. Nh6+ {[%emt 0:00:05]} Kh8 {[%emt 0:00:04]} 49. Nf7+ {[%emt 0:00:03]} Kg8 {[%emt 0:00:07]} 50. Nh6+ {[%emt 0:00:01]} Kh8 {[%emt 0:00:08]} 51. Nf7+ {[%emt 0:00:03]} 1/2-1/2

[Event "RUS-chT Premier 2019"]
[Site "Sochi"]
[Date "2019.05.03"]
[Round "3.5"]
[White "Levin, Evgeny A."]
[Black "Saveliev, Alexei"]
[Result "1/2-1/2"]
[ECO "E17"]
[WhiteElo "2516"]
[BlackElo "2367"]
[Annotator "ChessBase"]
[PlyCount "120"]
[EventDate "2019.05.01"]
[EventType "team-tourn"]
[EventCountry "RUS"]
[SourceTitle "playchess.com"]
[Source "ChessBase"]
[SourceQuality "1"]
[TimeControl "40/5400+30:1800+30"]

1. d4 {[%emt 0:00:00]} Nf6 {[%emt 0:00:00]} 2. c4 {[%emt 0:00:00]} e6 {[%emt 0:00:00]} 3. Nf3 {[%emt 0:00:00]} b6 {[%emt 0:00:02]} 4. g3 {[%emt 0:00:09]} Bb7 {[%emt 0:00:08]} 5. Bg2 {[%emt 0:00:08]} Be7 {[%emt 0:00:12]} 6. O-O {[%emt 0:00:07]} O-O {[%emt 0:00:07]} 7. d5 {[%emt 0:00:34]} exd5 {[%emt 0:01:49]} 8. Nh4 {[%emt 0:04:22]} c6 {[%emt 0:00:14]} 9. cxd5 {[%emt 0:00:07]} Nxd5 {[%emt 0:00:11]} 10. Nf5 {[%emt 0:00:17]} Nc7 {[%emt 0:08:53]} 11. e4 {[%emt 0:00:38]} d5 {[%emt 0:00:09]} 12. Nc3 {[%emt 0:01:54]} Bf6 {[%emt 0:06:14]} 13. exd5 {[%emt 0:02:32]} Nxd5 {[%emt 0:02:58]} 14. Nxd5 {[%emt 0:00:15]} cxd5 {[%emt 0:00:05]} 15. Ne3 {[%emt 0:00:04]} Na6 {[%emt 0:12:27]} 16. Nxd5 {[%emt 0:00:27]} Nc5 {[%emt 0:02:45]} 17. Rb1 {[%emt 0:01:19]} Rc8 {[%emt 0:07:26]} 18. b4 {[%emt 0:02:55]} Bxd5 {[%emt 0:00:22]} 19. Bxd5 {[%emt 0:00:28]} Ne6 {[%emt 0:01:24]} 20. Be3 {[%emt 0:00:34]} Qe7 {[%emt 0:03:06]} 21. Qg4 {[%emt 0:04:47]} Rfd8 {[%emt 0:05:20]} 22. Rfd1 {[%emt 0:11:34]} Rc7 {[%emt 0:09:09]} 23. Bb3 {[%emt 0:21:09]} Rcd7 {[%emt 0:01:44]} 24. Rxd7 {[%emt 0:02:03]} Rxd7 {[%emt 0:02:19]} 25. Rc1 {[%emt 0:04:12]} g6 {[%emt 0:07:21]} 26. Qe4 {[%emt 0:24:13]} Kg7 {[%emt 0:03:21]} 27. Bxe6 {[%emt 0:12:12]} Qxe6 {[%emt 0:00:42]} 28. Qxe6 {[%emt 0:00:05]} fxe6 {[%emt 0:00:02]} 29. b5 {[%emt 0:00:43]} Be5 {[%emt 0:13:41]} 30. Kg2 {[%emt 0:01:05]} Kf6 {[%emt 0:00:14]} 31. Rc4 {[%emt 0:03:09]} Rd5 {[%emt 0:01:04]} 32. a4 {[%emt 0:01:22]} Rd3 {[%emt 0:01:18]} 33. Rc8 {[%emt 0:02:18]} Bd4 {[%emt 0:04:11]} 34. Rd8 {[%emt 0:00:24]} e5 {[%emt 0:00:01]} 35. Rd7 {[%emt 0:00:41]} h5 {[%emt 0:01:10]} 36. Kf3 {[%emt 0:00:40]} Ra3 {[%emt 0:01:07]} 37. Rxa7 {[%emt 0:00:16]} Kf5 {[%emt 0:00:15]} 38. Rf7+ {[%emt 0:00:07]} Ke6 {[%emt 0:00:18]} 39. Rb7 {[%emt 0:00:58]} Kf5 {[%emt 0:01:50]} 40. Ke2 {[%emt 0:00:00]} Bxe3 {[%emt 0:00:00]} 41. fxe3 {[%emt 0:01:02]} Ke4 {[%emt 0:09:12]} 42. Rxb6 {[%emt 0:02:53]} Rxa4 {[%emt 0:00:33]} 43. Rxg6 {[%emt 0:09:21]} Ra2+ {[%emt 0:01:50]} 44. Kd1 {[%emt 0:00:08]} Kxe3 {[%emt 0:01:59]} 45. b6 {[%emt 0:03:46]} Rxh2 {[%emt 0:06:42]} 46. Kc1 {[%emt 0:01:07]} Rh1+ {[%emt 0:00:04]} 47. Kc2 {[%emt 0:01:30]} Rh2+ {[%emt 0:00:02]} 48. Kc3 {[%emt 0:02:01]} Rh1 {[%emt 0:00:03]} 49. Kb2 {[%emt 0:03:34]} Rh2+ {[%emt 0:00:08]} 50. Ka3 {[%emt 0:02:03]} Rh1 {[%emt 0:00:05]} 51. Rc6 {[%emt 0:01:59]} Ra1+ {[%emt 0:07:58]} 52. Kb4 {[%emt 0:00:49]} Rb1+ {[%emt 0:00:55]} 53. Kc5 {[%emt 0:01:04]} Kf3 {[%emt 0:03:19]} 54. Rh6 {[%emt 0:00:33]} Kxg3 {[%emt 0:00:32]} 55. Rxh5 {[%emt 0:00:04]} e4 {[%emt 0:00:04]} 56. Kc6 {[%emt 0:00:40]} e3 {[%emt 0:00:08]} 57. Re5 {[%emt 0:00:13]} Kf2 {[%emt 0:00:08]} 58. b7 {[%emt 0:01:37]} Rxb7 {[%emt 0:00:15]} 59. Kxb7 {[%emt 0:00:03]} e2 {[%emt 0:00:03]} 60. Rxe2+ {[%emt 0:00:06]} Kxe2 1/2-1/2

[Event "RUS-chT Premier 2019"]
[Site "Sochi"]
[Date "2019.05.03"]
[Round "3.6"]
[White "Askerov, Marat"]
[Black "Ivanov, Sergey"]
[Result "1/2-1/2"]
[ECO "A40"]
[WhiteElo "2315"]
[BlackElo "2504"]
[Annotator "ChessBase"]
[PlyCount "74"]
[EventDate "2019.05.01"]
[EventType "team-tourn"]
[EventCountry "RUS"]
[SourceTitle "playchess.com"]
[Source "ChessBase"]
[SourceQuality "1"]
[TimeControl "40/5400+30:1800+30"]

1. d4 {[%emt 0:00:00]} e6 {[%emt 0:00:00]} 2. Nf3 {[%emt 0:00:03]} Nf6 {[%emt 0:00:00]} 3. g3 {[%emt 0:00:06]} d5 {[%emt 0:02:18]} 4. Bg2 {[%emt 0:00:26]} b5 {[%emt 0:03:51]} 5. a4 {[%emt 0:01:26]} b4 {[%emt 0:00:39]} 6. Nbd2 {[%emt 0:01:15]} c5 {[%emt 0:01:16]} 7. c4 {[%emt 0:02:28]} Bb7 {[%emt 0:02:34]} 8. O-O {[%emt 0:08:22]} Nbd7 {[%emt 0:01:29]} 9. a5 {[%emt 0:13:56]} Rc8 {[%emt 0:02:29]} 10. b3 {[%emt 0:10:34]} cxd4 {[%emt 0:11:01]} 11. Nxd4 {[%emt 0:07:00]} Bc5 {[%emt 0:01:55]} 12. Bb2 {[%emt 0:01:07]} O-O {[%emt 0:00:23]} 13. cxd5 {[%emt 0:02:47]} Nxd5 {[%emt 0:07:02]} 14. Ne4 {[%emt 0:05:42]} Qe7 {[%emt 0:05:15]} 15. Qd2 {[%emt 0:11:13]} Rfd8 {[%emt 0:04:28]} 16. Nxc5 {[%emt 0:06:09]} Nxc5 {[%emt 0:01:57]} 17. Bxd5 {[%emt 0:01:27]} Bxd5 {[%emt 0:09:58]} 18. Qxb4 {[%emt 0:00:09]} Qf6 {[%emt 0:24:33]} 19. Rac1 {[%emt 0:07:46]} e5 {[%emt 0:11:42]} 20. Rxc5 {[%emt 0:05:32]} exd4 {[%emt 0:01:35]} 21. Rxc8 {[%emt 0:03:44]} Rxc8 {[%emt 0:00:02]} 22. Qxd4 {[%emt 0:01:51]} Qxd4 {[%emt 0:00:48]} 23. Bxd4 {[%emt 0:00:01]} a6 {[%emt 0:00:22]} 24. b4 {[%emt 0:01:33]} Rc2 {[%emt 0:01:52]} 25. Re1 {[%emt 0:03:15]} Bc4 {[%emt 0:00:34]} 26. e4 {[%emt 0:01:40]} h5 {[%emt 0:00:22]} 27. Kg2 {[%emt 0:00:43]} Re2 {[%emt 0:00:51]} 28. Rc1 {[%emt 0:01:07]} Bd3 {[%emt 0:00:32]} 29. e5 {[%emt 0:01:25]} Be4+ {[%emt 0:00:59]} 30. Kf1 {[%emt 0:00:56]} Rd2 {[%emt 0:00:47]} 31. Be3 {[%emt 0:00:56]} Rb2 {[%emt 0:00:31]} 32. Bc5 {[%emt 0:00:35]} Bf3 {[%emt 0:00:47]} 33. Bd6 {[%emt 0:00:24]} Kh7 {[%emt 0:00:25]} 34. Ke1 {[%emt 0:00:05]} Re2+ {[%emt 0:00:15]} 35. Kf1 {[%emt 0:00:03]} Rb2 {[%emt 0:00:16]} 36. Ke1 {[%emt 0:01:02]} Re2+ {[%emt 0:01:11]} 37. Kf1 {[%emt 0:00:02]} Rb2 1/2-1/2

[Event "RUS-chT Premier 2019"]
[Site "Sochi"]
[Date "2019.05.03"]
[Round "3.12"]
[White "Lomasov, Semyon"]
[Black "Gordievsky, Dmitry"]
[Result "1/2-1/2"]
[ECO "B31"]
[WhiteElo "2541"]
[BlackElo "2585"]
[Annotator "ChessBase"]
[PlyCount "86"]
[EventDate "2019.05.01"]
[EventType "team-tourn"]
[EventCountry "RUS"]
[SourceTitle "playchess.com"]
[Source "ChessBase"]
[SourceQuality "1"]
[TimeControl "40/5400+30:1800+30"]

1. e4 {[%emt 0:00:00]} c5 {[%emt 0:00:00]} 2. Nf3 {[%emt 0:00:00]} Nc6 {[%emt 0:00:00]} 3. Bb5 {[%emt 0:00:00]} g6 {[%emt 0:00:00]} 4. Bxc6 {[%emt 0:00:00]} dxc6 {[%emt 0:00:08]} 5. d3 {[%emt 0:00:00]} Bg7 {[%emt 0:00:33]} 6. O-O {[%emt 0:00:25]} Nf6 {[%emt 0:01:26]} 7. a4 {[%emt 0:01:19]} O-O {[%emt 0:05:43]} 8. Nc3 {[%emt 0:08:22]} Bg4 {[%emt 0:03:45]} 9. h3 {[%emt 0:00:21]} Bxf3 {[%emt 0:00:11]} 10. Qxf3 {[%emt 0:00:04]} Nd7 {[%emt 0:05:34]} 11. Qg3 {[%emt 0:11:25]} e5 {[%emt 0:04:34]} 12. Bg5 {[%emt 0:13:29]} Qc7 {[%emt 0:07:17]} 13. Qh4 {[%emt 0:02:35]} Rfe8 {[%emt 0:11:50]} 14. Bh6 {[%emt 0:04:59]} Qd8 {[%emt 0:09:05]} 15. Qxd8 {[%emt 0:00:18]} Raxd8 {[%emt 0:00:12]} 16. Bxg7 {[%emt 0:08:54]} Kxg7 {[%emt 0:00:03]} 17. b3 {[%emt 0:00:09]} Nf8 {[%emt 0:03:31]} 18. f4 {[%emt 0:03:07]} exf4 {[%emt 0:03:14]} 19. Rxf4 {[%emt 0:00:43]} Ne6 {[%emt 0:00:12]} 20. Rf2 {[%emt 0:00:15]} Nd4 {[%emt 0:03:34]} 21. Raf1 {[%emt 0:04:12]} Rd7 {[%emt 0:00:49]} 22. g4 {[%emt 0:00:13]} b5 {[%emt 0:19:20]} 23. axb5 {[%emt 0:01:07]} cxb5 {[%emt 0:00:04]} 24. Nd5 {[%emt 0:00:32]} Re6 {[%emt 0:00:33]} 25. Ra1 {[%emt 0:16:22]} Nc6 {[%emt 0:04:05]} 26. g5 {[%emt 0:13:35]} h6 {[%emt 0:02:57]} 27. gxh6+ {[%emt 0:03:02]} Kxh6 {[%emt 0:00:34]} 28. Nf6 {[%emt 0:03:02]} Rb7 {[%emt 0:01:25]} 29. h4 {[%emt 0:00:31]} Kg7 {[%emt 0:02:34]} 30. h5 {[%emt 0:01:00]} a5 {[%emt 0:00:12]} 31. Raf1 {[%emt 0:02:01]} a4 {[%emt 0:04:39]} 32. bxa4 {[%emt 0:00:05]} bxa4 {[%emt 0:00:03]} 33. h6+ {[%emt 0:00:06]} Kxh6 {[%emt 0:02:08]} 34. Rh2+ {[%emt 0:00:07]} Kg7 {[%emt 0:00:38]} 35. Rh7+ {[%emt 0:00:05]} Kf8 {[%emt 0:00:03]} 36. Rh8+ {[%emt 0:00:31]} Ke7 {[%emt 0:01:19]} 37. Nd5+ {[%emt 0:00:06]} Kd6 {[%emt 0:00:25]} 38. Ra8 {[%emt 0:01:21]} f5 {[%emt 0:04:39]} 39. Rxa4 {[%emt 0:02:20]} fxe4 {[%emt 0:00:18]} 40. dxe4 {[%emt 0:00:00]} Nb4 {[%emt 0:00:00]} 41. Nxb4 {[%emt 0:08:42]} Rxb4 {[%emt 0:04:10]} 42. Rxb4 {[%emt 0:00:53]} cxb4 {[%emt 0:00:03]} 43. c3 {[%emt 0:00:04]} bxc3 {[%emt 0:00:25]} 1/2-1/2

[Event "RUS-chT Premier 2019"]
[Site "Sochi"]
[Date "2019.05.03"]
[Round "3.18"]
[White "Goganov, Aleksey"]
[Black "Nozdrachev, Leonid"]
[Result "1/2-1/2"]
[ECO "E04"]
[WhiteElo "2570"]
[BlackElo "2367"]
[Annotator "ChessBase"]
[PlyCount "100"]
[EventDate "2019.05.01"]
[EventType "team-tourn"]
[EventCountry "RUS"]
[SourceTitle "playchess.com"]
[Source "ChessBase"]
[SourceQuality "1"]
[TimeControl "40/5400+30:1800+30"]

1. d4 {[%emt 0:00:00]} Nf6 {[%emt 0:00:00]} 2. c4 {[%emt 0:00:00]} e6 {[%emt 0:00:00]} 3. Nf3 {[%emt 0:00:00]} d5 {[%emt 0:00:00]} 4. g3 {[%emt 0:01:14]} dxc4 {[%emt 0:00:13]} 5. Bg2 {[%emt 0:00:07]} Bd7 {[%emt 0:00:43]} 6. Ne5 {[%emt 0:03:49]} Bc6 {[%emt 0:00:18]} 7. Nxc6 {[%emt 0:03:00]} Nxc6 {[%emt 0:00:06]} 8. e3 {[%emt 0:06:59]} Qd7 {[%emt 0:00:51]} 9. O-O {[%emt 0:03:23]} O-O-O {[%emt 0:04:42]} 10. Qa4 {[%emt 0:13:16]} Nd5 {[%emt 0:04:46]} 11. Qxc4 {[%emt 0:01:29]} h5 {[%emt 0:01:45]} 12. Nd2 {[%emt 0:09:58]} h4 {[%emt 0:03:53]} 13. Nf3 {[%emt 0:02:44]} hxg3 {[%emt 0:05:51]} 14. hxg3 {[%emt 0:00:11]} f5 {[%emt 0:02:18]} 15. Bd2 {[%emt 0:02:23]} Rh5 {[%emt 0:09:58]} 16. b4 {[%emt 0:06:18]} Bd6 {[%emt 0:04:37]} 17. b5 {[%emt 0:00:42]} Nce7 {[%emt 0:02:14]} 18. Rfe1 {[%emt 0:08:08]} Nf6 {[%emt 0:06:25]} 19. Bb4 {[%emt 0:04:52]} Ng6 {[%emt 0:10:38]} 20. Bxd6 {[%emt 0:00:37]} Qxd6 {[%emt 0:00:13]} 21. Qc5 {[%emt 0:04:50]} Qxc5 {[%emt 0:08:44]} 22. dxc5 {[%emt 0:01:13]} e5 {[%emt 0:09:11]} 23. Red1 {[%emt 0:06:21]} Ne4 {[%emt 0:01:34]} 24. Rxd8+ {[%emt 0:00:49]} Kxd8 {[%emt 0:05:08]} 25. Rc1 b6 {[%emt 0:00:21]} 26. cxb6 {[%emt 0:01:06]} axb6 {[%emt 0:02:39]} 27. a4 {[%emt 0:09:22]} Nd6 {[%emt 0:01:38]} 28. Kf1 {[%emt 0:00:20]} Kd7 {[%emt 0:00:30]} 29. Nd2 {[%emt 0:00:30]} e4 {[%emt 0:01:49]} 30. g4 {[%emt 0:00:24]} fxg4 {[%emt 0:01:52]} 31. Nxe4 {[%emt 0:00:06]} Ne5 {[%emt 0:04:24]} 32. Nxd6 {[%emt 0:00:07]} Kxd6 {[%emt 0:00:48]} 33. Rd1+ {[%emt 0:00:21]} Kc5 {[%emt 0:02:21]} 34. Rd4 {[%emt 0:01:49]} Nf3 {[%emt 0:05:13]} 35. Rf4 {[%emt 0:03:03]} g5 {[%emt 0:00:03]} 36. Rf5+ {[%emt 0:00:39]} Kb4 {[%emt 0:00:25]} 37. Bxf3 {[%emt 0:02:21]} gxf3 {[%emt 0:00:03]} 38. Rxf3 {[%emt 0:00:08]} Kxa4 {[%emt 0:02:10]} 39. Rf5 {[%emt 0:00:27]} Rh1+ {[%emt 0:00:18]} 40. Ke2 {[%emt 0:00:00]} g4 {[%emt 0:00:00]} 41. e4 {[%emt 0:05:53]} Rh3 {[%emt 0:06:03]} 42. Rd5 {[%emt 0:03:22]} Kb4 {[%emt 0:01:54]} 43. e5 {[%emt 0:02:13]} Kc4 {[%emt 0:01:00]} 44. Rd7 {[%emt 0:00:16]} Rh5 {[%emt 0:01:53]} 45. Rxc7+ {[%emt 0:00:11]} Kxb5 {[%emt 0:06:46]} 46. Re7 {[%emt 0:00:32]} Kc6 {[%emt 0:00:35]} 47. Ke3 {[%emt 0:00:56]} Rf5 {[%emt 0:00:28]} 48. e6 {[%emt 0:01:26]} Kd6 {[%emt 0:02:17]} 49. Rb7 {[%emt 0:00:14]} Rf3+ {[%emt 0:00:39]} 50. Ke2 {[%emt 0:00:21]} Kxe6 1/2-1/2

[Event "RUS-chT Premier 2019"]
[Site "Sochi"]
[Date "2019.05.04"]
[Round "4.3"]
[White "Shubin, Kirill"]
[Black "Kokarev, Dmitry"]
[Result "1/2-1/2"]
[ECO "B53"]
[WhiteElo "2404"]
[BlackElo "2605"]
[Annotator "RC"]
[PlyCount "80"]
[EventDate "2019.04.30"]
[EventType "team-tourn"]
[EventCountry "RUS"]
[SourceTitle "playchess.com"]
[Source "ChessBase"]
[SourceQuality "1"]
[TimeControl "40/5400+30:1800+30"]

1. e4 {[%emt 0:00:00]} c5 {[%emt 0:00:00]} 2. Nf3 {[%emt 0:00:00]} d6 {[%emt 0:00:00]} 3. d4 {[%emt 0:00:00]} cxd4 {[%emt 0:00:00]} 4. Qxd4 {[%emt 0:00:00]} Nf6 {[%emt 0:00:08]} 5. Bb5+ {[%emt 0:00:00]} Bd7 {[%emt 0:00:09]} 6. c4 {[%emt 0:00:00]} g6 {[%emt 0:00:18]} 7. Nc3 {[%emt 0:00:04]} Bg7 {[%emt 0:00:14]} 8. O-O {[%emt 0:00:07]} O-O {[%emt 0:00:11]} 9. Qd3 {[%emt 0:00:04]} Bg4 {[%emt 0:01:41]} 10. h3 {[%emt 0:00:04]} Bxf3 {[%emt 0:00:11]} 11. Qxf3 {[%emt 0:00:04]} Nc6 {[%emt 0:01:06]} 12. Bxc6 {[%emt 0:08:15]} bxc6 {[%emt 0:00:09]} 13. e5 {[%emt 0:02:52]} Nd7 {[%emt 0:00:11]} 14. exd6 {[%emt 0:00:13]} Ne5 {[%emt 0:00:07]} 15. Qe2 {[%emt 0:07:20]} exd6 {[%emt 0:02:25]} 16. b3 {[%emt 0:00:30]} d5 {[%emt 0:18:15]} 17. cxd5 {[%emt 0:09:07]} cxd5 {[%emt 0:00:19]} 18. Bb2 {[%emt 0:00:31]} d4 {[%emt 0:13:06]} 19. Rad1 {[%emt 0:00:37]} Re8 {[%emt 0:05:44]} 20. Nb5 {[%emt 0:03:20]} d3 {[%emt 0:05:38]} 21. Qd2 {[%emt 0:01:16]} Nf3+ {[%emt 0:02:48]} 22. gxf3 {[%emt 0:00:08]} Bxb2 {[%emt 0:07:14]} 23. f4 {[%emt 0:00:10]} a6 {[%emt 0:08:24]} 24. Qxb2 {[%emt 0:00:05]} axb5 {[%emt 0:00:06]} 25. Qc3 {[%emt 0:00:06]} Qh4 {[%emt 0:03:31]} 26. Rxd3 {[%emt 0:00:51]} Qxf4 {[%emt 0:03:09]} 27. Qd2 {[%emt 0:03:05]} Qf5 {[%emt 0:00:33]} 28. Rd1 {[%emt 0:01:42]} h5 {[%emt 0:03:05]} 29. Re3 {[%emt 0:05:20]} Rxe3 {[%emt 0:05:14]} 30. Qxe3 {[%emt 0:00:03]} Kh7 {[%emt 0:02:53]} 31. Qd3 {[%emt 0:00:26]} Qg5+ {[%emt 0:03:01]} 32. Qg3 {[%emt 0:01:34]} Qxg3+ {[%emt 0:01:42]} 33. fxg3 {[%emt 0:00:03]} Rxa2 {[%emt 0:00:08]} 34. Rd5 {[%emt 0:00:02]} b4 {[%emt 0:00:27]} 35. Rd4 {[%emt 0:00:16]} Rb2 {[%emt 0:01:31]} 36. Rxb4 {[%emt 0:00:06]} Kg7 {[%emt 0:00:08]} 37. h4 {[%emt 0:00:05]} Kf6 {[%emt 0:00:36]} 38. Rf4+ {[%emt 0:00:29]} Ke5 {[%emt 0:00:19]} 39. Rxf7 {[%emt 0:00:05]} Rxb3 {[%emt 0:00:04]} 40. Kg2 {[%emt 0:00:00]} Rb2+ {[%emt 0:00:00]} 1/2-1/2

[Event "RUS-chT Premier 2019"]
[Site "Sochi"]
[Date "2019.05.04"]
[Round "4.4"]
[White "Romanov, Evgeny"]
[Black "Saveliev, Alexei"]
[Result "1-0"]
[ECO "B40"]
[WhiteElo "2573"]
[BlackElo "2367"]
[Annotator "ChessBase"]
[PlyCount "75"]
[EventDate "2019.04.30"]
[EventType "team-tourn"]
[EventCountry "RUS"]
[SourceTitle "playchess.com"]
[Source "ChessBase"]
[SourceQuality "1"]
[TimeControl "40/5400+30:1800+30"]

1. e4 {[%emt 0:00:00]} c5 {[%emt 0:00:00]} 2. Nf3 {[%emt 0:00:00]} e6 {[%emt 0:00:00]} 3. b3 {[%emt 0:00:10]} a6 {[%emt 0:01:33]} 4. Bb2 {[%emt 0:00:15]} Nc6 {[%emt 0:00:18]} 5. g3 {[%emt 0:01:08]} Nf6 {[%emt 0:08:12]} 6. e5 {[%emt 0:01:53]} Ng4 {[%emt 0:00:44]} 7. Qe2 {[%emt 0:03:30]} d6 {[%emt 0:30:56]} 8. exd6 {[%emt 0:01:10]} Nf6 {[%emt 0:03:29]} 9. Na3 {[%emt 0:02:46]} Bxd6 {[%emt 0:04:04]} 10. Bg2 {[%emt 0:06:21]} O-O {[%emt 0:00:06]} 11. Nc4 {[%emt 0:00:15]} Be7 {[%emt 0:01:09]} 12. a4 {[%emt 0:07:27]} Nd5 {[%emt 0:07:14]} 13. O-O {[%emt 0:02:27]} Bd7 {[%emt 0:04:56]} 14. a5 {[%emt 0:04:37]} Qc7 {[%emt 0:00:44]} 15. Nfe5 {[%emt 0:01:49]} Rae8 {[%emt 0:02:03]} 16. Rfe1 {[%emt 0:12:46]} Bc8 {[%emt 0:05:22]} 17. Nxc6 {[%emt 0:03:24]} bxc6 {[%emt 0:01:30]} 18. Qe5 {[%emt 0:06:05]} Qxe5 {[%emt 0:00:50]} 19. Nxe5 {[%emt 0:00:11]} Nb4 {[%emt 0:03:02]} 20. Rac1 {[%emt 0:06:42]} Rd8 {[%emt 0:00:17]} 21. d3 {[%emt 0:04:42]} Bb7 {[%emt 0:03:00]} 22. f4 {[%emt 0:01:05]} Nd5 {[%emt 0:01:29]} 23. h4 {[%emt 0:02:28]} f6 {[%emt 0:03:05]} 24. Nf3 {[%emt 0:02:14]} Kf7 {[%emt 0:00:08]} 25. Re4 {[%emt 0:01:48]} Rb8 {[%emt 0:01:05]} 26. Rce1 {[%emt 0:01:48]} Bc8 {[%emt 0:00:07]} 27. Bh3 {[%emt 0:00:46]} Nc7 {[%emt 0:00:16]} 28. f5 {[%emt 0:02:35]} Bd6 {[%emt 0:00:17]} 29. fxe6+ {[%emt 0:00:41]} Ke7 {[%emt 0:00:02]} 30. Kh2 {[%emt 0:09:37]} g6 {[%emt 0:05:40]} 31. h5 {[%emt 0:01:07]} Rb5 {[%emt 0:02:07]} 32. hxg6 {[%emt 0:05:28]} hxg6 {[%emt 0:00:05]} 33. Rh4 {[%emt 0:02:53]} f5 {[%emt 0:02:56]} 34. Rh7+ {[%emt 0:01:11]} Ke8 {[%emt 0:00:01]} 35. Be5 {[%emt 0:01:24]} Bxe5 {[%emt 0:00:36]} 36. Nxe5 {[%emt 0:00:23]} Nxe6 {[%emt 0:00:12]} 37. Bg2 {[%emt 0:00:59]} Rxa5 {[%emt 0:00:30]} 38. Nxc6 {[%emt 0:00:20]} 1-0